[Event "FIDE World Cup O12-B 2024"]
[Site "Batumi"]
[Date "2024.06.28"]
[Round "6.9"]
[White "Chia, Yu Zhe Ashton"]
[Black "Akhmet, Suleyman"]
[Result "0-1"]
[ECO "B30"]
[WhiteElo "2229"]
[BlackElo "1793"]
[Annotator "RC"]
[PlyCount "80"]
[EventDate "2024.06.23"]
[EventType "swiss"]
[EventCountry "GEO"]
[SourceTitle "playchess.com"]
[Source "ChessBase"]
[SourceQuality "1"]
[TimeControl "5400+30"]

1. e4 {[%emt 0:00:06]} c5 {[%emt 0:00:04]} 2. Nf3 {[%emt 0:00:24]} Nc6 {[%emt 0:00:09]} 3. Bb5 {[%emt 0:01:01]} Nf6 {[%emt 0:01:31]} 4. Nc3 {[%emt 0:00:26]} a6 {[%emt 0:00:46]} 5. Bxc6 {[%emt 0:00:53]} dxc6 {[%emt 0:00:07]} 6. O-O {[%emt 0:01:23]} Qc7 {[%emt 0:00:47]} 7. e5 {[%emt 0:01:35]} Nd5 {[%emt 0:10:54]} 8. Ne4 {[%emt 0:00:39]} Bg4 {[%emt 0:28:57]} 9. Nxc5 {[%emt 0:01:46]} e6 {[%emt 0:01:18]} 10. Nd3 {[%emt 0:01:15]} O-O-O {[%emt 0:01:02]} 11. b3 {[%emt 0:01:42]} Nb4 {[%emt 0:03:26]} 12. Nde1 {[%emt 0:28:53]} g5 {[%emt 0:05:28]} 13. Bb2 {[%emt 0:09:19]} Rg8 {[%emt 0:01:33]} 14. d4 {[%emt 0:03:10]} h5 {[%emt 0:01:14]} 15. c4 {[%emt 0:04:17]} Bxf3 {[%emt 0:03:52]} 16. Nxf3 {[%emt 0:07:26]} g4 {[%emt 0:02:43]} 17. Nd2 {[%emt 0:01:15]} c5 {[%emt 0:01:44]} 18. d5 {[%emt 0:14:16]} exd5 {[%emt 0:01:16]} 19. cxd5 {[%emt 0:00:37]} Nxd5 {[%emt 0:02:57]} 20. Qc2 {[%emt 0:02:07]} Be7 {[%emt 0:12:42]} 21. Rad1 {[%emt 0:02:12]} h4 {[%emt 0:02:18]} 22. Nc4 {[%emt 0:04:31]} Qc6 {[%emt 0:03:07]} 23. Qe4 {[%emt 0:01:52]} Kb8 {[%emt 0:03:59]} 24. Rd3 {[%emt 0:04:43]} Nb4 {[%emt 0:04:44]} 25. Rxd8+ {[%emt 0:00:44]} Bxd8 {[%emt 0:00:49]} 26. Qh7 {[%emt 0:01:15]} h3 {[%emt 0:01:03]} 27. Ne3 {[%emt 0:00:41]} Rg6 {[%emt 0:03:16]} 28. Qh8 {[%emt 0:02:08]} Qc8 {[%emt 0:02:12]} 29. Rd1 {[%emt 0:00:23]} Bc7 {[%emt 0:00:29]} 30. Qh7 {[%emt 0:01:22]} Qe6 {[%emt 0:00:23]} 31. Qh8+ {[%emt 0:01:11]} Ka7 {[%emt 0:00:24]} 32. Nc4 {[%emt 0:01:09]} Qc6 {[%emt 0:00:25]} 33. Ne3 {[%emt 0:00:28]} Nc2 {[%emt 0:00:28]} 34. Nd5 {[%emt 0:00:36]} Nd4 {[%emt 0:00:49]} 35. Bxd4 {[%emt 0:00:52]} Qxd5 {[%emt 0:00:12]} 36. Bxc5+ {[%emt 0:01:04]} Qxc5 {[%emt 0:00:06]} 37. Qe8 {[%emt 0:00:37]} Re6 {[%emt 0:00:43]} 38. Qxf7 {[%emt 0:00:09]} Qxe5 {[%emt 0:00:05]} 39. f4 {[%emt 0:00:23]} Qe3+ {[%emt 0:00:04]} 40. Kh1 {[%emt 0:00:13]} Qe1+ {[%emt 0:00:09]} 0-1

[Event "FIDE World Cup O12-B 2024"]
[Site "Batumi"]
[Date "2024.06.28"]
[Round "6.10"]
[White "Suleymanov, Askhab"]
[Black "Khubuluri, Zaal"]
[Result "1-0"]
[ECO "B21"]
[WhiteElo "1630"]
[BlackElo "1501"]
[Annotator "NA RC"]
[PlyCount "67"]
[EventDate "2024.06.23"]
[EventType "swiss"]
[EventCountry "GEO"]
[SourceTitle "playchess.com"]
[Source "ChessBase"]
[SourceQuality "1"]
[TimeControl "5400+30"]

1. e4 {[%emt 0:00:01]} c5 {[%emt 0:00:07]} 2. d4 {[%emt 0:00:08]} cxd4 {[%emt 0:00:08]} 3. c3 {[%emt 0:00:06]} dxc3 {[%emt 0:00:05]} 4. Nxc3 {[%emt 0:00:11]} e6 {[%emt 0:00:16]} 5. Nf3 {[%emt 0:00:10]} Nc6 {[%emt 0:00:22]} 6. Bc4 {[%emt 0:00:10]} a6 {[%emt 0:00:14]} 7. O-O {[%emt 0:00:43]} Nge7 {[%emt 0:01:57]} 8. Bg5 {[%emt 0:01:24]} h6 {[%emt 0:01:08]} 9. Bh4 {[%emt 0:04:10]} b5 {[%emt 0:03:20]} 10. Bxb5 {[%emt 0:26:33]} g5 {[%emt 0:15:34]} 11. Bg3 {[%emt 0:09:10]} Bg7 {[%emt 0:13:06]} 12. Bxc6 {[%emt 0:07:14]} Nxc6 {[%emt 0:04:15]} 13. Bd6 {[%emt 0:00:56]} Bf8 {[%emt 0:05:24]} 14. e5 {[%emt 0:15:04]} Bxd6 {[%emt 0:02:51]} 15. Qxd6 {[%emt 0:00:18]} Qe7 {[%emt 0:01:59]} 16. Qd3 {[%emt 0:03:14]} g4 {[%emt 0:07:06]} 17. Nd4 {[%emt 0:03:09]} Bb7 {[%emt 0:02:19]} 18. Nxc6 {[%emt 0:01:47]} Bxc6 {[%emt 0:02:16]} 19. Ne4 {[%emt 0:01:10]} Bxe4 {[%emt 0:03:43]} 20. Qxe4 {[%emt 0:00:02]} Rb8 {[%emt 0:00:19]} 21. Qxg4 {[%emt 0:00:55]} Rxb2 {[%emt 0:00:40]} 22. Rab1 {[%emt 0:03:53]} Rb5 {[%emt 0:08:04]} 23. a4 {[%emt 0:00:19]} Rxb1 {[%emt 0:01:58]} 24. Rxb1 {[%emt 0:00:01]} Qd8 {[%emt 0:01:19]} 25. Qg7 {[%emt 0:00:41]} Rf8 {[%emt 0:00:28]} 26. Qxh6 {[%emt 0:04:40]} Qc7 {[%emt 0:01:08]} 27. Qg7 {[%emt 0:01:19]} d6 {[%emt 0:02:14]} 28. exd6 {[%emt 0:01:26]} Qxd6 {[%emt 0:02:10]} 29. Qc3 {[%emt 0:01:45]} Kd7 {[%emt 0:04:03]} 30. Qf3 {[%emt 0:02:13]} Ke7 {[%emt 0:05:21]} 31. Rb7+ {[%emt 0:02:50]} Ke8 {[%emt 0:01:49]} 32. Ra7 {[%emt 0:01:01]} Qb6 {[%emt 0:02:06]} 33. Qa8+ {[%emt 0:00:14]} Qd8 {[%emt 0:00:22]} 34. Qc6+ {[%emt 0:00:13]} 1-0

[Event "FIDE World Cup O12-B 2024"]
[Site "Batumi"]
[Date "2024.06.28"]
[Round "6.11"]
[White "Amangeldy, Ramazan"]
[Black "Atar, Semih Akif"]
[Result "1-0"]
[ECO "C10"]
[WhiteElo "1740"]
[BlackElo "1660"]
[Annotator "NA RC"]
[PlyCount "53"]
[EventDate "2024.06.23"]
[EventType "swiss"]
[EventCountry "GEO"]
[SourceTitle "playchess.com"]
[Source "ChessBase"]
[SourceQuality "1"]
[TimeControl "5400+30"]

1. e4 {[%emt 0:00:04]} e6 {[%emt 0:00:03]} 2. d4 {[%emt 0:00:10]} d5 {[%emt 0:00:05]} 3. Nc3 {[%emt 0:00:04]} dxe4 {[%emt 0:00:24]} 4. Nxe4 {[%emt 0:00:04]} Nf6 {[%emt 0:00:15]} 5. Nxf6+ {[%emt 0:00:01]} gxf6 {[%emt 0:00:14]} 6. Nf3 {[%emt 0:00:12]} Nc6 {[%emt 0:00:47]} 7. c3 {[%emt 0:00:04]} b6 {[%emt 0:01:40]} 8. Bb5 {[%emt 0:00:23]} Bb7 {[%emt 0:00:28]} 9. Bf4 {[%emt 0:00:06]} a6 {[%emt 0:07:25]} 10. Ba4 {[%emt 0:00:08]} Qd5 {[%emt 0:01:48]} 11. Bxc7 {[%emt 0:00:57]} b5 {[%emt 0:02:48]} 12. Bb3 {[%emt 0:00:09]} Qf5 {[%emt 0:03:41]} 13. Qe2 {[%emt 0:00:29]} Rc8 {[%emt 0:07:05]} 14. Bg3 {[%emt 0:00:11]} Ne7 {[%emt 0:04:13]} 15. Rd1 {[%emt 0:03:28]} Nd5 {[%emt 0:04:14]} 16. a4 {[%emt 0:00:16]} Bc6 {[%emt 0:00:52]} 17. axb5 {[%emt 0:00:40]} axb5 {[%emt 0:00:23]} 18. Bc2 {[%emt 0:00:01]} Qg4 {[%emt 0:05:17]} 19. Bd3 {[%emt 0:00:21]} b4 {[%emt 0:01:03]} 20. h3 {[%emt 0:03:50]} Qh5 {[%emt 0:00:16]} 21. c4 {[%emt 0:00:13]} Nc7 {[%emt 0:01:47]} 22. d5 {[%emt 0:00:14]} Ba4 {[%emt 0:00:38]} 23. Ra1 {[%emt 0:00:14]} Bd7 {[%emt 0:00:30]} 24. Qe4 {[%emt 0:00:28]} Bc5 {[%emt 0:00:38]} 25. d6 {[%emt 0:00:14]} Qg6 {[%emt 0:04:19]} 26. dxc7 {[%emt 0:00:20]} e5 {[%emt 0:00:27]} 27. Qd5 {[%emt 0:00:08]} 1-0

[Event "FIDE World Cup O12-B 2024"]
[Site "Batumi"]
[Date "2024.06.28"]
[Round "6.12"]
[White "Cronje, Johannes Christiaan"]
[Black "Pirtac, Alexandru"]
[Result "0-1"]
[ECO "A16"]
[WhiteElo "1504"]
[BlackElo "1977"]
[Annotator "RC"]
[PlyCount "70"]
[EventDate "2024.06.23"]
[EventType "swiss"]
[EventCountry "GEO"]
[SourceTitle "playchess.com"]
[Source "ChessBase"]
[SourceQuality "1"]
[TimeControl "5400+30"]

1. c4 {[%emt 0:00:03]} Nf6 {[%emt 0:01:21]} 2. g3 {[%emt 0:00:13]} g6 {[%emt 0:00:25]} 3. Bg2 {[%emt 0:00:08]} Bg7 {[%emt 0:00:25]} 4. Nc3 {[%emt 0:00:11]} d6 {[%emt 0:00:09]} 5. e3 {[%emt 0:00:12]} O-O {[%emt 0:00:27]} 6. Nge2 {[%emt 0:00:10]} c6 {[%emt 0:01:14]} 7. O-O {[%emt 0:00:13]} h5 {[%emt 0:00:52]} 8. h4 {[%emt 0:01:00]} a5 {[%emt 0:00:31]} 9. d4 {[%emt 0:00:34]} Na6 {[%emt 0:00:24]} 10. a3 {[%emt 0:00:27]} e5 {[%emt 0:05:01]} 11. b4 {[%emt 0:02:07]} exd4 {[%emt 0:00:47]} 12. exd4 {[%emt 0:00:33]} axb4 {[%emt 0:04:01]} 13. axb4 {[%emt 0:00:18]} d5 {[%emt 0:00:19]} 14. b5 {[%emt 0:01:36]} Nc7 {[%emt 0:00:32]} 15. Rxa8 {[%emt 0:00:09]} Nxa8 {[%emt 0:00:01]} 16. c5 {[%emt 0:01:13]} Nc7 {[%emt 0:01:36]} 17. b6 {[%emt 0:00:42]} Na6 {[%emt 0:01:00]} 18. Bf4 {[%emt 0:01:39]} Bf5 {[%emt 0:00:28]} 19. Qd2 {[%emt 0:07:10]} Kh7 {[%emt 0:00:38]} 20. Ra1 {[%emt 0:02:13]} Qd7 {[%emt 0:04:07]} 21. Qb2 {[%emt 0:03:35]} Ra8 {[%emt 0:02:36]} 22. Na2 {[%emt 0:03:25]} Ne4 {[%emt 0:01:57]} 23. Nb4 {[%emt 0:02:27]} Nexc5 {[%emt 0:00:04]} 24. Qc3 {[%emt 0:06:36]} Ne4 {[%emt 0:00:41]} 25. Bxe4 {[%emt 0:00:59]} dxe4 {[%emt 0:00:50]} 26. Nxa6 {[%emt 0:00:54]} Rxa6 {[%emt 0:01:38]} 27. Rxa6 {[%emt 0:00:15]} bxa6 {[%emt 0:00:05]} 28. Qb4 {[%emt 0:01:07]} Qb7 {[%emt 0:00:41]} 29. Nc1 {[%emt 0:05:00]} e3 {[%emt 0:02:21]} 30. fxe3 {[%emt 0:03:34]} c5 {[%emt 0:01:47]} 31. dxc5 {[%emt 0:01:52]} Qf3 {[%emt 0:00:30]} 32. Qd2 {[%emt 0:09:26]} Be4 {[%emt 0:00:21]} 33. Qh2 {[%emt 0:00:23]} Qd1+ {[%emt 0:00:12]} 34. Kf2 {[%emt 0:00:33]} Bc3 {[%emt 0:00:04]} 35. Qg1 {[%emt 0:03:44]} Qf3# {[%emt 0:00:15]} 0-1

[Event "FIDE World Cup O12-B 2024"]
[Site "Batumi"]
[Date "2024.06.28"]
[Round "6.12"]
[White "Cronje, Johannes Christiaan"]
[Black "Pirtac, Alexandru"]
[Result "*"]
[ECO "A16"]
[WhiteElo "1504"]
[BlackElo "1977"]
[Annotator "RC"]
[PlyCount "33"]
[EventDate "2024.06.23"]
[EventType "swiss"]
[EventCountry "GEO"]
[SourceTitle "playchess.com"]
[Source "ChessBase"]
[SourceQuality "1"]
[TimeControl "5400+30"]

1. c4 {[%emt 0:00:03]} Nf6 {[%emt 0:01:21]} 2. g3 {[%emt 0:00:13]} g6 {[%emt 0:00:25]} 3. Bg2 {[%emt 0:00:08]} Bg7 {[%emt 0:00:25]} 4. Nc3 {[%emt 0:00:11]} d6 {[%emt 0:00:09]} 5. e3 {[%emt 0:00:12]} O-O {[%emt 0:00:27]} 6. Nge2 {[%emt 0:00:10]} c6 {[%emt 0:01:14]} 7. O-O {[%emt 0:00:13]} h5 {[%emt 0:00:52]} 8. h4 {[%emt 0:01:00]} a5 {[%emt 0:00:31]} 9. d4 {[%emt 0:00:34]} Na6 {[%emt 0:00:24]} 10. a3 {[%emt 0:00:27]} e5 {[%emt 0:05:01]} 11. b4 {[%emt 0:02:07]} exd4 {[%emt 0:00:47]} 12. exd4 {[%emt 0:00:33]} axb4 {[%emt 0:04:01]} 13. axb4 {[%emt 0:00:18]} d5 {[%emt 0:00:19]} 14. b5 {[%emt 0:01:36]} Nc7 {[%emt 0:00:32]} 15. Ra4 {[%emt 1:30:15]} Ra7 16. Rxa7 Na8 17. Rxa8 {[%emt 0:00:00]} *